Cogmind - Beta 14 @@@ ROGUE MODE // 2024.11.09 @ 20:04:40 Player: Daddy5 Result: Self-destructed Performance ------------- Evolutions (1) 500 Regions Visited (3) 600 Robots Destroyed (16) 80 Value Destroyed (550) 550 Prototype IDs (3) 60 Alien Tech Used (0) 0 Bonus (14) 14 TOTAL SCORE: 1804 Bonus ------- Follower Combat Kills 14 Cogmind --------- Core Integrity 13/400 Matter 400/400 Energy 100/100 System Corruption 0% Temperature Cool (6) Movement Walking (260) Ox2 Location -9/Materials Parts ------- > --- POWER (3) -------- (None) > --- PROPULSION (2) --- Aluminum Leg > --- UTILITY (2) ------ Large Storage Unit Medium Matter Pod > --- WEAPON (2) ------- (None) > --- INVENTORY (15) --- Heat Sink Sensor Array Peak State ------------ > --- POWER ------------ Light Ion Engine Light Nuclear Core > --- PROPULSION ------- Light Treads Light Treads > --- UTILITY ---------- Large Storage Unit Structural Scanner > --- WEAPON ----------- Assault Rifle Assault Rifle > --- INVENTORY -------- Heat Sink Medium Matter Pod Weapon Shielding Medium Laser Mining Laser [Rating: 10] Favorites ----------- Power Light Ion Engine Engine Light Ion Engine Power Core Light Nuclear Core Propulsion Light Treads Treads Light Treads Leg Aluminum Leg Utility Large Storage Unit Device Heat Sink Storage Large Storage Unit Protection Weapon Shielding Weapon Assault Rifle Energy Gun Medium Laser Ballistic Gun Assault Rifle Special Weapon Mining Laser Build | -11 -10 -10 -9 ------- Run | Yrd Mat Min Mat Slots Evolved 2 | . . . 2 Power 2 | . . . 2 Propulsion . | . . . . Utility . | . . . . Weapon . | . . . . Parts Attached 26 | 3 8 3 12 Power 6 | 1 1 1 3 Engine 4 | 1 . 1 2 Core 2 | . 1 . 1 Reactor . | . . . . Propulsion 5 | 2 . . 3 Treads 4 | 2 . . 2 Leg 1 | . . . 1 Wheel . | . . . . Hover . | . . . . Flight . | . . . . Utility 7 | . 3 2 2 Device 3 | . 2 1 . Storage 3 | . 1 1 1 Processor . | . . . . Hackware . | . . . . Protection 1 | . . . 1 Artifact . | . . . . Weapon 8 | . 4 . 4 Energy Gun 3 | . 1 . 2 Energy Cannon . | . . . . Ballistic Gun 4 | . 3 . 1 Ballistic Cannon . | . . . . Launcher . | . . . . Special Weapon 1 | . . . 1 Impact Weapon . | . . . . Slashing Weapon . | . . . . Piercing Weapon . | . . . . Special Melee Weapon . | . . . . Unidentified Prototypes . | . . . . Parts Lost 16 | . 1 . 15 Power 4 | . . . 4 Propulsion 3 | . . . 3 Utility 3 | . 1 . 2 Weapon 6 | . . . 6 Highest Loss Streak 8 | . 1 . 8 To Critical Strikes . | . . . . Average Slot Usage (%) 80 | . 87 100 69 Engine 8 | . 2 11 11 Core 5 | . 11 2 2 Treads 22 | . 28 28 17 Device 11 | . 17 14 5 Storage 7 | . . 14 11 Protection 1 | . . . 2 Energy Gun 1 | . . . 3 Ballistic Gun 20 | . 26 28 13 Peak Build Rating 10 | 3 9 9 10 Average Rating 7 | 2 7 7 7 On Entrance 4 | . 3 9 7 Naked Turns . | . . . . Heaviest Build 33 | 3 12 28 33 Greatest Support 40 | 40 40 40 40 Greatest Overweight (x) 7 | . . . 7 Average Overweight (x) . | . . . . Largest Inventory Capacity 15 | 5 5 15 15 Average Capacity 10 | 5 5 12 15 Most Carried 6 | 5 5 6 6 Average Carried 3 | 3 2 3 4 Final Capacity 15 | 5 5 15 15 Final Carried 6 | 4 2 6 2 Class Distribution -------------------- 81% | Mutant 18% | Scavenger-Mutant Dominant Class ---------------- Mutant | -10/Materials Mutant | -10/Mines Mutant | -9/Materials Resources | -11 -10 -10 -9 ----------- Run | Yrd Mat Min Mat Matter Collected 815 | 211 282 140 182 Remotely . | . . . . Salvage Created 651 | . 414 . 237 Parts 43 | . 23 . 20 Haulers Intercepted . | . . . . Recyclers Shooed 1 | . 1 . . Parts Field Recycled . | . . . . Retrieved Matter . | . . . . Parts Self-Destructed . | . . . . Prevented . | . . . . Kills | -11 -10 -10 -9 ------- Run | Yrd Mat Min Mat Combat Hostiles Destroyed 15 | . 9 . 6 Guns 14 | . 9 . 5 Classes Destroyed 4 | . 1 . 3 Watcher 1 | . . . 1 Swarmer 1 | . . . 1 Grunt 12 | . 9 . 3 Sentry 2 | . . . 2 Best Kill Streak 4 | . 4 . 2 Combat Bots Only 4 | . 4 . 1 Max Kills in Single Turn 1 | . 1 . 1 Gunslinging . | . . . . Exploded . | . . . . Melee . | . . . . Uniques/NPCs Destroyed . | . . . . Combat | -11 -10 -10 -9 -------- Run | Yrd Mat Min Mat Hostile Shots Fired 200 | . 58 . 142 Missed 45 | . 17 . 28 Damage Taken 1904 | . 463 . 1441 Core 457 | . 70 . 387 Absorbed by Shields . | . . . . Redirected to Shielding 42 | . . . 42 Core Remaining (%) 86 | 100 . 72 . Volleys Fired 79 | . 33 . 46 Largest 2 | . 2 . 2 Hottest 165 | . 40 . 165 Shots Fired 136 | . 66 . 70 Gun 132 | . 66 . 66 Cannon . | . . . . Launcher . | . . . . Special 4 | . . . 4 Kinetic 109 | . 66 . 43 Thermal 27 | . . . 27 Explosive . | . . . . Electromagnetic . | . . . . Robot Hit Streak 11 | . 7 . 11 Robot Miss Streak 5 | . 5 . 3 Penetration Max . | . . . . Secondary Targets 1 | . 1 . . Max Gunslinging Chain 1 | . 1 . . Shots Hit Robots 84 | . 38 . 46 Core Hits 30 | . 18 . 12 Critical Kills . | . . . . Critical Parts Destroyed . | . . . . Critical Strikes 1 | . . . 1 Burn 1 | . . . 1 Melee Attacks . | . . . . Impact . | . . . . Slashing . | . . . . Piercing . | . . . . Sneak Attacks . | . . . . Combat Hostiles . | . . . . Follow-up Attacks . | . . . . Damage Inflicted 1123 | . 536 2 585 Guns 1073 | . 536 . 537 Cannons . | . . . . Explosions . | . . . . Melee . | . . . . Ramming 2 | . . 2 . Kinetic 897 | . 536 . 361 Thermal 224 | . . . 224 Explosive . | . . . . Electromagnetic . | . . . . Impact . | . . . . Slashing . | . . . . Piercing . | . . . . Highest Corruption . | . . . . Average Corruption . | . . . . Corruption Purged . | . . . . Corruption Blocked . | . . . . Overload Shots . | . . . . Overflow Damage . | . . . . Projectiles . | . . . . Explosions . | . . . . Melee . | . . . . Knockbacks . | . . . . Impact . | . . . . Kinetic . | . . . . Secondary . | . . . . Self-Inflicted Damage . | . . . . Shots . | . . . . Rammed 1 | . . 1 . Targets Rammed 1 | . . 1 . Kicked . | . . . . Crushed . | . . . . Highest Temperature 267 | . 20 . 267 Average Temperature 76 | . 8 . 81 Received Heat Transfer 984 | . 279 . 705 Siege Activations . | . . . . Robots Corrupted . | . . . . Combat Hostiles . | . . . . Parts Fried . | . . . . Impact Corruptions . | . . . . Robots Melted 1 | . . . 1 Combat Hostiles 1 | . . . 1 Parts Melted . | . . . . Heat Transferred 655 | . . . 655 Parts Sabotaged . | . . . . Parts Stolen . | . . . . Parts Stripped . | . . . . Power Chain Reactions . | . . . . Alert | -11 -10 -10 -9 ------- Run | Yrd Mat Min Mat Peak Influence 289 | . 289 34 162 Initial 34 | . . 34 13 Average 96 | . 150 34 82 Maximum Alert Level 1 | . 1 . . Low Security (%) 85 | 100 59 100 100 Level 1 14 | . 40 . . Level 2 . | . . . . Level 3 . | . . . . Level 4 . | . . . . Level 5 . | . . . . High Security . | . . . . Max Security . | . . . . Squads Dispatched 7 | . 5 . 2 Investigation 4 | . 3 . 1 Extermination . | . . . . Reinforcement 3 | . 2 . 1 Assault . | . . . . Garrison . | . . . . Intercept . | . . . . Searches Triggered . | . . . . Construction Impeded . | . . . . Haulers Reinforced . | . . . . Active Scanning Responses . | . . . . Cargo Convoy Interrupts . | . . . . Stealth | -11 -10 -10 -9 --------- Run | Yrd Mat Min Mat Distress Signals 3 | . 2 . 1 Communications Jammed . | . . . . Distress Signals . | . . . . Times Spotted 32 | . 13 . 19 Peak Tracking Total 7 | . 4 . 7 Tactical Retreats 2 | . 1 . 1 Traps | -11 -10 -10 -9 ------- Run | Yrd Mat Min Mat Traps Triggered . | . . . . Indirectly . | . . . . Trap Hack Attempts . | . . . . Triggered . | . . . . Disarmed . | . . . . Reprogrammed . | . . . . Reused . | . . . . Traps Extracted . | . . . . Installed . | . . . . Triggered . | . . . . Machines | -11 -10 -10 -9 ---------- Run | Yrd Mat Min Mat Machines Disabled . | . . . . Max in Single Turn . | . . . . Machines Repaired . | . . . . Machines Dismantled . | . . . . Machines Sabotaged . | . . . . Overloaded Fab Kills . | . . . . Hacking | -11 -10 -10 -9 --------- Run | Yrd Mat Min Mat Machines Accessed 7 | . 5 . 2 Terminals 6 | . 4 . 2 Fabricators . | . . . . Repair Stations . | . . . . Recycling Units 1 | . 1 . . Scanalyzers . | . . . . Garrison Access . | . . . . Total Hacks 22 | . 17 . 5 Successful 15 | . 12 . 3 Failed 7 | . 5 . 2 Catastrophic 2 | . 1 . 1 Database Lockouts . | . . . . Manual . | . . . . Terminals 18 | . 13 . 5 Fabricators . | . . . . Repair Stations . | . . . . Recycling Units 4 | . 4 . . Scanalyzers . | . . . . Garrison Access . | . . . . Terminal Hacks 12 | . 9 . 3 Record 2 | . 2 . . Prototype ID Bank 1 | . . . 1 Emergency Access Points 1 | . . . 1 Alert Level 7 | . 7 . . Zone Layout 1 | . . . 1 Fabricator Hacks . | . . . . Repair Station Hacks . | . . . . Recycling Unit Hacks 3 | . 3 . . Process 1 | . 1 . . Report Inventory 1 | . 1 . . Retrieve Matter 1 | . 1 . . Scanalyzer . | . . . . Garrison Access Hacks . | . . . . Unauthorized Hacks . | . . . . Terminals . | . . . . Fabricators . | . . . . Repair Stations . | . . . . Recycling Units . | . . . . Scanalyzers . | . . . . Garrison Access . | . . . . Data Cores Recovered . | . . . . Used . | . . . . Hacking Detections 7 | . 5 . 2 Full Trace Events 5 | . 4 . 1 Feedback Events . | . . . . Feedback Blocked . | . . . . Robot Schematics Acquired . | . . . . Robots Built . | . . . . Authchips . | . . . . Time . | . . . . Total Robot Build Rating . | . . . . Part Schematics Acquired . | . . . . Parts Built . | . . . . Authchips . | . . . . Time . | . . . . Total Part Build Rating . | . . . . Parts Repaired . | . . . . Time . | . . . . Parts Recycled . | . . . . Recycled Matter 78 | . 78 . . Retrieved Matter 78 | . 78 . . Retrieved Components . | . . . . Parts Scanalyzed . | . . . . Part Schematics Acquired . | . . . . Parts Damaged . | . . . . Bothacking | -11 -10 -10 -9 ------------ Run | Yrd Mat Min Mat Used RIF Installer . | . . . . Robots Hacked . | . . . . Non-combat . | . . . . Combat . | . . . . Robot Hacks Applied . | . . . . Relay Couplers Released . | . . . . Fabnet Peak Effective % . | . . . . Robots Rewired . | . . . . Allies Hacked . | . . . . Hacks Repelled . | . . . . Allies | -11 -10 -10 -9 -------- Run | Yrd Mat Min Mat Total Allies 1 | . . 1 . Largest Group 1 | . . 1 1 Highest-Rated Group 31 | . . 31 31 Highest-Rated Ally 31 | . . 31 31 Total Orders . | . . . . Ally Attacks 10 | . . . 10 Total Damage 64 | . . . 64 Kills 3 | . . . 3 Allies Corrupted . | . . . . Allies Melted . | . . . . Intel | -11 -10 -10 -9 ------- Run | Yrd Mat Min Mat Robot Analysis Total . | . . . . Derelict Logs Recovered . | . . . . Drone Launches . | . . . . Drone Recoveries . | . . . . Exploration | -11 -10 -10 -9 ------------- Run | Yrd Mat Min Mat Turns Passed 1156 | 74 429 134 519 Spaces Moved 540 | 55 198 78 209 Core 24 | 20 . . 4 Treads 508 | 35 198 78 197 Legs 8 | . . . 8 Wheels . | . . . . Hover . | . . . . Flight . | . . . . Fastest Speed 50 | 50 160 160 160 Average Speed 163 | 120 160 160 178 Slowest Speed 400 | 160 160 160 400 Overloaded Moves . | . . . . Propulsion Burnouts . | . . . . Robots Hopped . | . . . . Cave-ins Triggered . | . . . . Exploration Rate (%) 21 | 3 35 25 22 Regions Visited 3 Branch Regions 1 Pre-discovered Areas . | . . . . Known Exits Taken . | . . . . Unknown Exits Taken 3 | 1 1 1 . Scrap Searched 2 | . . 2 . Spaces Dug . | . . . . Terrain Destroyed 2 | . . . 2 Melee . | . . . . Projectile 2 | . . . 2 AOE . | . . . . Terrain Rammed . | . . . . Walls Destroyed . | . . . . Machines Disabled . | . . . . Actions | -11 -10 -10 -9 --------- Run | Yrd Mat Min Mat Total 667 | 63 243 85 276 Wait . | . . . . Move 537 | 54 197 77 209 Hop . | . . . . Pick Up 22 | 6 4 4 8 Fast Attach 1 | 1 . . . Attach 18 | 2 5 . 11 Detach . | . . . . Swap 7 | . 3 3 1 Drop 2 | . 1 . 1 Fire 79 | . 33 . 46 Melee . | . . . . Ram . | . . . . Kick . | . . . . Crush 1 | . . 1 . Escape Stasis . | . . . . Rewire . | . . . . Trap . | . . . . Miscellaneous . | . . . . Route ------- -11/Scrapyard -10/Materials -10/Mines -9/Materials History --------- Turn | Location | Event 6 | -11/Scrapyard | Discovered new exit (range 16) 75 | -11/Scrapyard | Entered Materials 304 | -10/Materials | Build established: Mutant 392 | -10/Materials | Discovered new exit (range 16) 504 | -10/Materials | Entered Mines 525 | -10/Mines | Found DCF Scrap (12 items) 616 | -10/Mines | Discovered new exit (range 9) 624 | -10/Mines | Received a Mining Laser from a helpful Derelict 638 | -10/Mines | Entered Materials 638 | -9/Materials | Accompanied by 1 ally 638 | -9/Materials | Evolved 2 slots: Power x2 774 | -9/Materials | Lost 3 parts (1p1n1w) 942 | -9/Materials | Lost 3 parts (1p1u1w) 1115 | -9/Materials | Core integrity fell below 50% 1151 | -9/Materials | Core integrity fell below 20% 1157 | -9/Materials | Self-destructed Last Messages --------------- Map updated. 01041_ ALERT: Suspicious activity at Terminal M004. Dispatching Investigation squad. 01045_ Weapon Shielding destroyed. 01045_ Med. Laser destroyed. 01074_ G-47 Trooper destroyed. 01075_ Hvy. Assault Rifle destroyed. 01084_ Acquired Particle Gun. 01093_ Ion Engine destroyed. 01097_ Lgt. Treads destroyed. 01100_ G-34 Mercenary heat spikes uncontrollably. 01101_ G-34 Mercenary overheating. 01102_ G-34 Mercenary critical meltdown. 01102_ Mining Laser destroyed. 01103_ U-05 Engineer builds a Wall. 01126_ Acquired 12 matter. 01130_ Particle Gun destroyed. 01130_ Critical hit (Burn: +37). 01134_ Acquired Aluminum Leg. 01137_ Acquired 20 matter. Map ----- +----------------------------------------------------+ | | | | | | | | | | | | | | | | | | | | | | | | | | | | | | | | | | | ???????????????##########??###########???????????? | | ???????????????# #??# #???????????? | | ???????????????# """ #??# """ """#???????????? | | ????????######## """ #??# """ T"#???????????? | | ????????# # """ #??# """ """#???????????? | | ????????# # #??# #???????????? | | ????????# # """ "" #### #????######## | | ????????# # """ T"g##;# #???######### | | ????????# # """ "" g@%g=! #???###!!!!## | | ????????# # g ########+##########! !# | | ?????#######+######+########## ######## # | | ???? =% ! # # | | ???? [ | | ???? ! ######## | | ?????##############/########## #### ######## | | ??????######### #???########### #??????? | | ?????+ + #???# """ # #??????? | | ??????######### """ """ #???# """ + #????### | | ??????????????# """ """ #???# """ # ######## | | ??????????????# """ """ #???# # ####### | | ???????????#### #???# "# # + | | ???????????# + #???# ?# # ## | | ???????????# ## = #???# ?# # ### | | ????????????+?????###??????????? ???# # ## | | ????????????????????????????????###???# # ## | | ????????????????????????????????###???# # ## | | ??????????????????????????????????????# # ## | | ?????????????????????????????????????## # ## | | ??????????????????????????????????##### ? # ## | | ??????????????????????????????????##### ##+##### | | ?????????????????????????????? ^ | | ?????????????????????????????? | | ?????????????????????????????? """ | +----------------------------------------------------+ Best States ------------- Heat Dissipation 35 Energy Generation 19 Energy Capacity 250 Matter Stores 400 Matter Capacity 400 Sight Range 16 Terrain Scan Range 14 Terrain Scan Density 10 Weapon Shielding 33 Evasion (%) 40 Recoil Reduction 2 Item Schematics ----------------- None Robot Schematics ------------------ None Fabricated ------------ Nothing Alien Tech Used ----------------- None Achievements -------------- None Challenges ------------ None Game ------ Seed ClaymoresSkeletonSheargun Manual? 0 Play Time 00:18:24 Cumulative 10.9 hours Start 2024.11.09 @ 19:46:59 End 2024.11.09 @ 20:04:40 Sessions 1 Manual Loads 0 Difficulty Rogue Special Mode None Game No. 19 Rogue 19 Adventurer 0 Explorer 0 Win Type - Total 0 Types 0/0/0/0/0/0/0/0/0 Lore% 10 Gallery% 14 Achievement% 15 Wizard Run 0 Options --------- Layout 1 ASCII 0 Keyboard 0 Movement Mouse Keybinds 0 Fullscreen 1 Font 32/SmallcapsGlow Map View 77x35 Zoom Use 0% Tactical HUD 1 Map Filters NONE Filters NONE Steam 1 RUN: 4d22fdfd-1ab3-4217-acf4-1e032d565c98